fUSD/lending_fUSD_20240412
["ID","MTS","AMOUNT","RATE_DAILY","PERIOD"]
[322241129,1712910654668,-500.0,0.00028493,2]
[322241130,1712910654677,-500.0,0.00028493,2]
[322241131,1712910654686,-500.0,0.00028493,2]
[322241132,1712910654695,-357.21412619,0.00028493,2]
[322241133,1712910654704,-500.0,0.00028493,2]
[322241134,1712910654713,-500.0,0.00028493,2]
[322241135,1712910654722,-869.58,0.00028493,2]
[322241136,1712910654732,-340.9247426,0.00028493,2]
[322241137,1712910654741,-509.23,0.00028493,2]
[322241138,1712910654751,-503.47,0.00028493,2]
[322241139,1712910654760,-500.0,0.00028493,2]
[322241140,1712910654770,-500.0,0.00028493,2]
[322241141,1712910654779,-500.0,0.00028493,2]
[322241142,1712910654789,-500.0,0.00028493,2]
[322241143,1712910654798,-500.0,0.00028493,2]
[322241144,1712910654808,-454.97432147,0.00028493,2]
[322241145,1712910654818,-500.0,0.00028493,2]
[322241146,1712910654827,-500.0,0.00028493,2]
[322241147,1712910654837,-500.0,0.00028493,2]
[322241148,1712910654848,-648.6245,0.00028493,2]
[322241149,1712910654859,-500.0,0.00028493,2]
[322241150,1712910654869,-500.0,0.00028493,2]
[322241151,1712910654878,-500.0,0.00028493,2]
[322241152,1712910654888,-500.0,0.00028493,2]
[322241153,1712910654899,-1051.09,0.00028493,2]
[322241154,1712910654908,-581.78,0.00028493,2]
[322241155,1712910654918,-955.26,0.00028493,2]
[322241156,1712910654927,-1086.38,0.00028493,2]
[322241157,1712910654938,-268.40216119,0.00028493,2]
[322241158,1712910654947,-1440.94,0.00028493,2]
[322241159,1712910654957,-500.0,0.00028493,2]
[322241160,1712910654966,-500.0,0.00028493,2]
[322241161,1712910654975,-15881.78,0.00028493,2]
[322241162,1712910654986,-500.0,0.00028493,2]
[322241163,1712910654997,-500.0,0.00028493,2]
[322241164,1712910655007,-2268.83,0.00028493,2]
[322241165,1712910655017,-1118.92,0.00028493,2]
[322241166,1712910655026,-500.0,0.00028493,2]
[322241167,1712910655036,-500.0,0.00028493,2]
[322241168,1712910655045,-635.62,0.00028493,2]
[322241169,1712910655054,-500.0,0.00028493,2]
[322241170,1712910655064,-500.0,0.00028493,2]
[322241171,1712910655075,-1073.25,0.00028493,2]
[322241172,1712910655085,-670.16,0.00028493,2]
[322241173,1712910655094,-628.69,0.00028493,2]
[322241174,1712910655105,-888.45,0.00028493,2]
[322241175,1712910655115,-1644.72,0.00028493,2]
[322241176,1712910655125,-2054.82,0.00028493,2]
[322241177,1712910655134,-794.28,0.00028493,2]
[322241178,1712910655143,-500.0,0.00028493,2]
[322241179,1712910655152,-504.05,0.00028493,2]
[322241180,1712910655164,-2423.68,0.00028493,2]
[322241181,1712910655175,-5075.03,0.00028493,2]
[322241182,1712910655184,-500.0,0.00028493,2]
[322241183,1712910655194,-500.0,0.00028493,2]
[322241184,1712910655204,-500.0,0.00028493,2]
[322241185,1712910655214,-769.18,0.00028493,2]
[322241186,1712910655224,-500.0,0.00028493,2]
[322241187,1712910655234,-1718.02,0.00028493,2]
[322241188,1712910655244,-500.0,0.00028493,2]
[322241189,1712910655253,-500.0,0.00028493,2]
[322241190,1712910655262,-707.32,0.00028493,2]
[322241191,1712910655271,-500.0,0.00028493,2]
[322241192,1712910655281,-500.0,0.00028493,2]
[322241193,1712910655290,-511.65,0.00028493,2]
[322241194,1712910655299,-593.47057845,0.00028493,2]
[322241195,1712910655312,-1023.69,0.00028493,2]
[322241196,1712910655322,-500.0,0.00028493,2]
[322241197,1712910655331,-500.0,0.00028493,2]
[322241198,1712910655340,-1513.61,0.00028493,2]
[322241199,1712910655350,-500.0,0.00028493,2]
[322241200,1712910655360,-433.33784767,0.00028493,2]
[322241201,1712910655371,-661.27,0.00028493,2]
[322241202,1712910655382,-500.0,0.00028493,2]
[322241203,1712910655393,-500.0,0.00028493,2]
[322241204,1712910655403,-500.0,0.00028493,2]
[322241205,1712910655412,-500.0,0.00028493,2]
[322241206,1712910655422,-1518.69,0.00028493,2]
[322241207,1712910655432,-500.0,0.00028493,2]
[322241208,1712910655442,-500.0,0.00028493,2]
[322241209,1712910655452,-1734.28,0.00028493,2]
[322241210,1712910655462,-1888.52,0.00028493,2]
[322241211,1712910655471,-500.0,0.00028493,2]
[322241212,1712910655480,-500.0,0.00028493,2]
[322241213,1712910655490,-845.6,0.00028493,2]
[322241214,1712910655499,-500.0,0.00028493,2]
[322241215,1712910655509,-1147.94,0.00028493,2]
[322241216,1712910655518,-500.0,0.00028493,2]
[322241217,1712910655527,-968.6,0.00028493,2]
[322241218,1712910655538,-250.38835394,0.00028493,2]
[322241219,1712910655548,-500.0,0.00028493,2]
[322241220,1712910655559,-901.52,0.00028493,2]
[322241221,1712910655568,-500.0,0.00028493,2]
[322241222,1712910655578,-5229.28,0.00028493,2]
[322241223,1712910655588,-500.0,0.00028493,2]
[322241224,1712910655598,-500.0,0.00028493,2]
[322241225,1712910655608,-1792.89,0.00028493,2]
[322241226,1712910655618,-500.0,0.00028493,2]
[322241227,1712910655627,-763.08,0.00028493,2]
[322241228,1712910655636,-715.29,0.00028493,2]
[322241229,1712910655645,-742.43,0.00028493,2]
[322241230,1712910655656,-676.83,0.00028493,2]
[322241231,1712910655666,-500.0,0.00028493,2]
[322241232,1712910655677,-1122.17,0.00028493,2]
[322241233,1712910655689,-775.54,0.00028493,2]
[322241234,1712910655701,-500.0,0.00028493,2]
[322241235,1712910655711,-500.0,0.00028493,2]
[322241236,1712910655722,-1457.02,0.00028493,2]
[322241237,1712910655731,-927.26,0.00028493,2]
[322241238,1712910655740,-672.74,0.00028493,2]
[322241239,1712910655750,-2171.71,0.00028493,2]
[322241240,1712910655759,-1750.71,0.00028493,2]
[322241241,1712910655769,-4894.56,0.00028493,2]
[322241242,1712910655779,-1617.03,0.00028493,2]
[322241243,1712910655790,-2386.31,0.00028493,2]
[322241244,1712910655799,-869.45,0.00028493,2]
[322241245,1712910655809,-1606.73,0.00028493,2]
[322241246,1712910655821,-2232.46,0.00028493,2]
[322241247,1712910655832,-500.0,0.00028493,2]
[322241248,1712910655843,-1566.09,0.00028493,2]
[322241249,1712910655854,-1551.51,0.00028493,2]
[322241250,1712910655864,-500.0,0.00028493,2]
[322241251,1712910655873,-904.67,0.00028493,2]
[322241252,1712910655883,-1349.22,0.00028493,2]
[322241253,1712910655894,-500.0,0.00028493,2]
[322241254,1712910655904,-758.58,0.00028493,2]
[322241255,1712910655913,-790.55,0.00028493,2]
[322241256,1712910655923,-1078.88,0.00028493,2]
[322241257,1712910655933,-500.0,0.00028493,2]
[322241258,1712910655942,-2788.66,0.00028493,2]
[322241259,1712910655952,-500.0,0.00028493,2]
[322241260,1712910655962,-367.49134387,0.00028493,2]
[322241261,1712910655972,-1484.06,0.00028493,2]
[322241262,1712910655981,-6871.46,0.00028493,2]
[322241263,1712910655990,-1564.17,0.00028493,2]
[322241264,1712910656001,-152.701849,0.00028493,14]
[322241265,1712910656011,-1925.8528945,0.00028511,2]
[322241266,1712910656020,-1065.6445309,0.00028511,2]
[322241267,1712910656031,-712.0,0.00028598,2]
[322241268,1712910656040,-170.59,0.00028608,2]
[322241269,1712910656050,-173.78,0.00028608,2]
[322241270,1712910656059,-155.6033092,0.00028656,2]
[322241271,1712910656068,-154.09758038,0.00028674,2]
[322241272,1712910656078,-154.09758038,0.0002872,2]
[322241273,1712910656087,-153.82382248,0.00028736,2]
[322241274,1712910656097,-247.28,0.00028737,15]
[322241275,1712910656106,-1178.92674415,0.00028765,2]
[322241276,1712910656116,-500.0,0.00028766,2]
[322241277,1712910656125,-500.0,0.00028766,2]
[322241278,1712910656135,-500.0,0.00028767,2]
[322241279,1712910656145,-500.0,0.00028767,2]
[322241280,1712910656155,-500.0,0.00028767,2]
[322241281,1712910656165,-500.0,0.00028767,2]
[322241282,1712910656174,-500.0,0.00028767,2]
[322241283,1712910656184,-500.0,0.00028767,2]
[322241284,1712910656194,-500.0,0.00028767,2]
[322241285,1712910656203,-500.0,0.00028767,2]
[322241286,1712910656212,-500.0,0.00028767,2]
[322241287,1712910656221,-500.0,0.00028767,2]
[322241288,1712910656230,-756.63,0.00028767,2]
[322241289,1712910656240,-151.0,0.00028767,7]
[322241290,1712910656251,-151.0,0.00028767,7]
[322241291,1712910656261,-500.0,0.00028767,2]
[322241292,1712910656270,-500.0,0.00028767,2]
[322241293,1712910656279,-500.0,0.00028767,2]
[322241294,1712910656288,-500.0,0.00028767,2]
[322241295,1712910656298,-151.61991446,0.00028767,2]
[322241296,1712910656308,-500.0,0.00028767,2]
[322241297,1712910656318,-500.0,0.00028767,2]
[322241298,1712910656327,-500.0,0.00028767,2]
[322241299,1712910656337,-150.0,0.00028767,2]
[322241300,1712910656346,-500.0,0.00028767,2]
[322241301,1712910656356,-500.0,0.00028767,2]
[322241302,1712910656365,-500.0,0.00028767,2]
[322241303,1712910656374,-500.0,0.00028767,2]
[322241304,1712910656384,-500.0,0.00028767,2]
[322241305,1712910656393,-600.07997,0.00028767,2]
[322241306,1712910656402,-500.0,0.00028767,2]
[322241307,1712910656412,-869.58,0.00028767,2]
[322241308,1712910656421,-509.23,0.00028767,2]
[322241309,1712910656430,-503.47,0.00028767,2]
[322241310,1712910656439,-500.0,0.00028767,2]
[322241311,1712910656448,-500.0,0.00028767,2]
[322241312,1712910656458,-500.0,0.00028767,2]
[322241313,1712910656467,-500.0,0.00028767,2]
[322241314,1712910656476,-500.0,0.00028767,2]
[322241315,1712910656486,-493.38465435,0.00028767,2]
[322241316,1712910656496,-500.0,0.00028767,2]
[322241317,1712910656506,-500.0,0.00028767,2]
[322241318,1712910656515,-500.0,0.00028767,2]
[322241319,1712910656524,-500.0,0.00028767,2]
[322241320,1712910656533,-500.0,0.00028767,2]
[322241321,1712910656543,-500.0,0.00028767,2]
[322241322,1712910656552,-1051.09,0.00028767,2]
[322241323,1712910656562,-581.78,0.00028767,2]
[322241324,1712910656571,-955.26,0.00028767,2]
[322241325,1712910656580,-1086.38,0.00028767,2]
[322241326,1712910656589,-1440.94,0.00028767,2]
[322241327,1712910656599,-500.0,0.00028767,2]
[322241328,1712910656609,-212.88272419,0.00028767,2]
[322241329,1712910656619,-15881.78,0.00028767,2]
[322241330,1712910656629,-500.0,0.00028767,2]
[322241331,1712910656640,-500.0,0.00028767,2]
[322241332,1712910656650,-2268.83,0.00028767,2]
[322241333,1712910656660,-1118.92,0.00028767,2]
[322241334,1712910656669,-500.0,0.00028767,2]
[322241335,1712910656679,-500.0,0.00028767,2]
[322241336,1712910656689,-635.62,0.00028767,2]
[322241337,1712910656699,-500.0,0.00028767,2]
[322241338,1712910656708,-500.0,0.00028767,2]
[322241339,1712910656718,-1073.25,0.00028767,2]
[322241340,1712910656728,-670.16,0.00028767,2]
[322241341,1712910656737,-628.69,0.00028767,2]
[322241342,1712910656749,-888.45,0.00028767,2]
[322241343,1712910656759,-1644.72,0.00028767,2]
[322241344,1712910656768,-2054.82,0.00028767,2]
[322241345,1712910656778,-794.28,0.00028767,2]
[322241346,1712910656788,-500.0,0.00028767,2]
[322241347,1712910656797,-504.05,0.00028767,2]
[322241348,1712910656807,-2423.68,0.00028767,2]
[322241349,1712910656817,-5075.03,0.00028767,2]
[322241350,1712910656827,-270.03286946,0.00028767,2]
[322241351,1712910656837,-500.0,0.00028767,2]
[322241352,1712910656847,-500.0,0.00028767,2]
[322241353,1712910656859,-769.18,0.00028767,2]
[322241354,1712910656869,-500.0,0.00028767,2]
[322241355,1712910656878,-1718.02,0.00028767,2]
[322241356,1712910656888,-500.0,0.00028767,2]
[322241357,1712910656899,-500.0,0.00028767,2]
[322241358,1712910656909,-707.32,0.00028767,2]
[322241359,1712910656919,-500.0,0.00028767,2]
[322241360,1712910656928,-500.0,0.00028767,2]
[322241361,1712910656940,-511.65,0.00028767,2]
[322241362,1712910656951,-1023.69,0.00028767,2]
[322241363,1712910656961,-500.0,0.00028767,2]
[322241364,1712910656970,-500.0,0.00028767,2]
[322241365,1712910656979,-1513.61,0.00028767,2]
[322241366,1712910656989,-500.0,0.00028767,2]
[322241367,1712910657000,-661.27,0.00028767,2]
[322241368,1712910657009,-500.0,0.00028767,2]
[322241369,1712910657019,-500.0,0.00028767,2]
[322241370,1712910657064,-500.0,0.00028767,2]
[322241371,1712910657073,-500.0,0.00028767,2]
[322241372,1712910657082,-1518.69,0.00028767,2]
[322241373,1712910657091,-500.0,0.00028767,2]
[322241374,1712910657100,-500.0,0.00028767,2]
[322241375,1712910657110,-1734.28,0.00028767,2]
[322241376,1712910657118,-1888.52,0.00028767,2]
[322241377,1712910657128,-500.0,0.00028767,2]
[322241378,1712910657138,-500.0,0.00028767,2]
[322241379,1712910657148,-845.6,0.00028767,2]
[322241380,1712910657157,-500.0,0.00028767,2]
[322241381,1712910657167,-1147.94,0.00028767,2]
[322241382,1712910657177,-500.0,0.00028767,2]
[322241383,1712910657186,-968.6,0.00028767,2]
[322241384,1712910657196,-510.92239744,0.00028767,2]
[322241385,1712910657205,-901.52,0.00028767,2]
[322241386,1712910657215,-500.0,0.00028767,2]
[322241387,1712910657224,-5229.28,0.00028767,2]
[322241388,1712910657234,-500.0,0.00028767,2]
[322241389,1712910657243,-500.0,0.00028767,2]
[322241390,1712910657255,-1792.89,0.00028767,2]
[322241391,1712910657264,-500.0,0.00028767,2]
[322241392,1712910657273,-763.08,0.00028767,2]
[322241393,1712910657282,-715.29,0.00028767,2]
[322241394,1712910657291,-742.43,0.00028767,2]
[322241395,1712910657301,-676.83,0.00028767,2]
[322241396,1712910657311,-500.0,0.00028767,2]
[322241397,1712910657320,-1122.17,0.00028767,2]
[322241398,1712910657330,-775.54,0.00028767,2]
[322241399,1712910657340,-500.0,0.00028767,2]
[322241400,1712910657350,-500.0,0.00028767,2]
[322241401,1712910657359,-1457.02,0.00028767,2]
[322241402,1712910657369,-927.26,0.00028767,2]
[322241403,1712910657378,-672.74,0.00028767,2]
[322241404,1712910657389,-2171.71,0.00028767,2]
[322241405,1712910657398,-1750.71,0.00028767,2]
[322241406,1712910657408,-4894.56,0.00028767,2]
[322241407,1712910657418,-1617.03,0.00028767,2]
[322241408,1712910657428,-2386.31,0.00028767,2]
[322241409,1712910657437,-869.45,0.00028767,2]
[322241410,1712910657446,-1606.73,0.00028767,2]
[322241411,1712910657456,-2232.46,0.00028767,2]
[322241412,1712910657466,-500.0,0.00028767,2]
[322241413,1712910657475,-1566.09,0.00028767,2]
[322241414,1712910657485,-1551.51,0.00028767,2]
[322241415,1712910657497,-500.0,0.00028767,2]
[322241416,1712910657506,-904.67,0.00028767,2]
[322241417,1712910657515,-1349.22,0.00028767,2]
[322241418,1712910657525,-500.0,0.00028767,2]
[322241419,1712910657535,-758.58,0.00028767,2]
[322241420,1712910657545,-790.55,0.00028767,2]
[322241421,1712910657555,-1078.88,0.00028767,2]
[322241422,1712910657565,-500.0,0.00028767,2]
[322241423,1712910657575,-2788.66,0.00028767,2]
[322241424,1712910657584,-500.0,0.00028767,2]
[322241425,1712910657594,-1484.06,0.00028767,2]
[322241426,1712910657603,-6871.46,0.00028767,2]
[322241427,1712910657613,-1564.17,0.00028767,2]
[322241428,1712910657622,-154.20406455,0.00028817,2]
[322241429,1712910657632,-168.79040145,0.00028831,4]
[322241430,1712910657641,-155.7833029,0.00028885,2]
[322241431,1712910657650,-1234.79344636,0.00028941,2]
[322241432,1712910657660,-166.66666666,0.00028949,2]
[322241433,1712910657670,-153.82382248,0.00028975,2]
[322241434,1712910657679,-150.5,0.0002899,15]
[322241435,1712910657688,-500.0,0.00028999,2]
[322241436,1712910657698,-500.0,0.00028999,2]
[322241437,1712910657707,-500.0,0.00028999,2]
[322241438,1712910657716,-543.06310344,0.00028999,2]
[322241439,1712910657725,-500.0,0.00028999,2]
[322241440,1712910657734,-500.0,0.00028999,2]
[322241441,1712910657743,-500.0,0.00028999,2]
[322241442,1712910657752,-500.0,0.00028999,2]
[322241443,1712910657761,-500.0,0.00028999,2]
[322241444,1712910657770,-514.06857829,0.00028999,2]
[322241445,1712910657779,-500.0,0.00028999,2]
[322241446,1712910657788,-500.0,0.00028999,2]
[322241447,1712910657797,-500.0,0.00028999,2]
[322241448,1712910657806,-500.0,0.00028999,2]
[322241449,1712910657816,-500.0,0.00028999,2]
[322241450,1712910657825,-500.0,0.00028999,2]
[322241451,1712910657834,-500.0,0.00028999,2]
[322241452,1712910657843,-500.0,0.00028999,2]
[322241453,1712910657854,-500.0,0.00028999,2]
[322241454,1712910657866,-500.0,0.00028999,2]
[322241455,1712910657875,-500.0,0.00028999,2]
[322241456,1712910657884,-500.0,0.00028999,2]
[322241457,1712910657895,-500.0,0.00028999,2]
[322241458,1712910657905,-500.0,0.00028999,2]
[322241459,1712910657914,-500.0,0.00028999,2]
[322241460,1712910657923,-500.0,0.00028999,2]
[322241461,1712910657934,-500.0,0.00028999,2]
[322241462,1712910657943,-500.0,0.00028999,2]
[322241463,1712910657953,-500.0,0.00028999,2]
[322241464,1712910657962,-500.0,0.00028999,2]
[322241465,1712910657972,-500.0,0.00028999,2]
[322241466,1712910657981,-500.0,0.00028999,2]
[322241467,1712910657991,-500.0,0.00028999,2]
[322241468,1712910658002,-500.0,0.00028999,2]
[322241469,1712910658014,-500.0,0.00028999,2]
[322241470,1712910658023,-463022.74362409,0.00028999,7]
[322241471,1712910658033,-448.5838941,0.00028999,2]
[322241472,1712910658042,-6745.48276377,0.00029,2]
[322241473,1712910658051,-438116.39821393,0.00029,2]
[322241474,1712910658060,-498.16,0.00029,2]
[322241475,1712910658070,-150.5,0.00029,15]
[322241476,1712910658079,-2668.0,0.00029,2]
[322241477,1712910658089,-9461.0,0.00029,2]
[322241478,1712910658098,-5001.0,0.00029,2]
[322241479,1712910658108,-2007.0,0.00029,2]
[322241480,1712910658117,-151.0,0.00029,7]
[322241481,1712910658127,-151.0,0.00029,7]
[322241482,1712910658136,-154.20406455,0.00029005,2]
[322241483,1712910658146,-153.82382248,0.00029008,2]
[322241484,1712910658155,-150.5,0.00029011,15]
[322241485,1712910658164,-150.5,0.00029021,15]
[322241486,1712910658173,-150.5,0.00029031,15]
[322241487,1712910658183,-500.0,0.0002904,2]
[322241488,1712910658192,-225.06,0.00029041,2]
[322241489,1712910658204,-500.0,0.00029041,2]
[322241490,1712910658214,-500.0,0.00029041,2]
[322241491,1712910658223,-500.0,0.00029041,2]
[322241492,1712910658232,-500.0,0.00029041,2]
[322241493,1712910658242,-500.0,0.00029041,2]
[322241494,1712910658254,-380.70602394,0.00029041,2]
[322241495,1712910658264,-500.0,0.00029041,2]
[322241496,1712910658273,-500.0,0.00029041,2]
[322241497,1712910658283,-164.54889774,0.00029041,2]
[322241498,1712910658292,-756.63,0.00029041,2]
[322241499,1712910658304,-151.0,0.00029041,7]
[322241500,1712910658314,-151.0,0.00029041,7]
[322241501,1712910658323,-203.48973986,0.00029041,2]
[322241502,1712910658333,-500.0,0.00029041,2]
[322241503,1712910658342,-500.0,0.00029041,2]
[322241504,1712910658351,-500.0,0.00029041,2]
[322241505,1712910658362,-500.0,0.00029041,2]
[322241506,1712910658371,-500.0,0.00029041,2]
[322241507,1712910658380,-155.55540376,0.00029041,2]
[322241508,1712910658391,-150.0,0.00029041,2]
[322241509,1712910658400,-500.0,0.00029041,2]
[322241510,1712910658410,-500.0,0.00029041,2]
[322241511,1712910658422,-500.0,0.00029041,2]
[322241512,1712910658432,-500.0,0.00029041,2]
[322241513,1712910658441,-500.0,0.00029041,2]
[322241514,1712910658453,-500.0,0.00029041,2]
[322241515,1712910658463,-869.58,0.00029041,2]
[322241516,1712910658473,-509.23,0.00029041,2]
[322241517,1712910658483,-503.47,0.00029041,2]
[322241518,1712910658492,-500.0,0.00029041,2]
[322241519,1712910658503,-500.0,0.00029041,2]
[322241520,1712910658513,-500.0,0.00029041,2]
[322241521,1712910658522,-211.60850759,0.00029041,2]
[322241522,1712910658531,-500.0,0.00029041,2]
[322241523,1712910658541,-500.0,0.00029041,2]
[322241524,1712910658550,-500.0,0.00029041,2]
[322241525,1712910658559,-500.0,0.00029041,2]
[322241526,1712910658569,-500.0,0.00029041,2]
[322241527,1712910658578,-500.0,0.00029041,2]
[322241528,1712910658587,-500.0,0.00029041,2]
[322241529,1712910658596,-1051.09,0.00029041,2]
[322241530,1712910658605,-581.78,0.00029041,2]
[322241531,1712910658614,-955.26,0.00029041,2]
[322241532,1712910658623,-1086.38,0.00029041,2]
[322241533,1712910658633,-1440.94,0.00029041,2]
[322241534,1712910658643,-500.0,0.00029041,2]
[322241535,1712910658651,-15881.78,0.00029041,2]
[322241536,1712910658661,-500.0,0.00029041,2]
[322241537,1712910658671,-500.0,0.00029041,2]
[322241538,1712910658680,-2268.83,0.00029041,2]
[322241539,1712910658689,-1118.92,0.00029041,2]
[322241540,1712910658698,-500.0,0.00029041,2]
[322241541,1712910658709,-500.0,0.00029041,2]
[322241542,1712910658719,-635.62,0.00029041,2]
[322241543,1712910658729,-500.0,0.00029041,2]
[322241544,1712910658739,-500.0,0.00029041,2]
[322241545,1712910658749,-1073.25,0.00029041,2]
[322241546,1712910658759,-670.16,0.00029041,2]
[322241547,1712910658769,-628.69,0.00029041,2]
[322241548,1712910658778,-888.45,0.00029041,2]
[322241549,1712910658787,-1644.72,0.00029041,2]
[322241550,1712910658799,-2054.82,0.00029041,2]
[322241551,1712910658809,-794.28,0.00029041,2]
[322241552,1712910658818,-500.0,0.00029041,2]
[322241553,1712910658827,-504.05,0.00029041,2]
[322241554,1712910658837,-2423.68,0.00029041,2]
[322241555,1712910658846,-5075.03,0.00029041,2]
[322241556,1712910658856,-500.0,0.00029041,2]
[322241557,1712910658866,-500.0,0.00029041,2]
[322241558,1712910658877,-769.18,0.00029041,2]
[322241559,1712910658887,-500.0,0.00029041,2]
[322241560,1712910658899,-1718.02,0.00029041,2]
[322241561,1712910658908,-500.0,0.00029041,2]
[322241562,1712910658918,-500.0,0.00029041,2]
[322241563,1712910658928,-707.32,0.00029041,2]
[322241564,1712910658942,-500.0,0.00029041,2]
[322241565,1712910658951,-500.0,0.00029041,2]
[322241566,1712910658960,-511.65,0.00029041,2]
[322241567,1712910658969,-1023.69,0.00029041,2]
[322241568,1712910658979,-500.0,0.00029041,2]
[322241569,1712910658989,-500.0,0.00029041,2]
[322241570,1712910659001,-1513.61,0.00029041,2]
[322241571,1712910659010,-500.0,0.00029041,2]
[322241572,1712910659019,-661.27,0.00029041,2]
[322241573,1712910659028,-500.0,0.00029041,2]
[322241574,1712910659037,-500.0,0.00029041,2]
[322241575,1712910659046,-500.0,0.00029041,2]
[322241576,1712910659056,-344.86946125,0.00029041,2]
[322241577,1712910659065,-1518.69,0.00029041,2]
[322241578,1712910659074,-500.0,0.00029041,2]
[322241579,1712910659084,-500.0,0.00029041,2]
[322241580,1712910659094,-1734.28,0.00029041,2]
[322241581,1712910659103,-1888.52,0.00029041,2]
[322241582,1712910659113,-500.0,0.00029041,2]
[322241583,1712910659122,-590.46805601,0.00029041,2]
[322241584,1712910659132,-845.6,0.00029041,2]
[322241585,1712910659142,-500.0,0.00029041,2]
[322241586,1712910659151,-1147.94,0.00029041,2]
[322241587,1712910659162,-500.0,0.00029041,2]
[322241588,1712910659172,-968.6,0.00029041,2]
[322241589,1712910659183,-901.52,0.00029041,2]
[322241590,1712910659194,-500.0,0.00029041,2]
[322241591,1712910659204,-5229.28,0.00029041,2]
[322241592,1712910659214,-500.0,0.00029041,2]
[322241593,1712910659223,-295.6621964,0.00029041,2]
[322241594,1712910659232,-1792.89,0.00029041,2]
[322241595,1712910659241,-500.0,0.00029041,2]
[322241596,1712910659251,-763.08,0.00029041,2]
[322241597,1712910659261,-715.29,0.00029041,2]
[322241598,1712910659270,-742.43,0.00029041,2]
[322241599,1712910659279,-676.83,0.00029041,2]
[322241600,1712910659288,-500.0,0.00029041,2]
[322241601,1712910659297,-1122.17,0.00029041,2]
[322241602,1712910659306,-775.54,0.00029041,2]
[322241603,1712910659317,-500.0,0.00029041,2]
[322241604,1712910659326,-500.0,0.00029041,2]
[322241605,1712910659335,-1457.02,0.00029041,2]
[322241606,1712910659344,-927.26,0.00029041,2]
[322241607,1712910659353,-672.74,0.00029041,2]
[322241608,1712910659363,-2171.71,0.00029041,2]
[322241609,1712910659372,-1750.71,0.00029041,2]
[322241610,1712910659382,-4894.56,0.00029041,2]
[322241611,1712910659391,-1617.03,0.00029041,2]
[322241612,1712910659400,-2386.31,0.00029041,2]
[322241613,1712910659409,-869.45,0.00029041,2]
[322241614,1712910659418,-1606.73,0.00029041,2]
[322241615,1712910659428,-2232.46,0.00029041,2]
[322241616,1712910659437,-546.19011637,0.00029041,2]
[322241617,1712910659447,-1566.09,0.00029041,2]
[322241618,1712910659456,-1551.51,0.00029041,2]
[322241619,1712910659465,-500.0,0.00029041,2]
[322241620,1712910659475,-904.67,0.00029041,2]
[322241621,1712910659483,-1349.22,0.00029041,2]
[322241622,1712910659492,-500.0,0.00029041,2]
[322241623,1712910659501,-758.58,0.00029041,2]
[322241624,1712910659510,-790.55,0.00029041,2]
[322241625,1712910659519,-1078.88,0.00029041,2]
[322241626,1712910659529,-500.0,0.00029041,2]
[322241627,1712910659538,-2788.66,0.00029041,2]
[322241628,1712910659547,-500.0,0.00029041,2]